[Event "*** Titled Tuesday Blitz"]
[Site "Chess.com"]
[Date "2021.03.09"]
[Round "3"]
[White "erdni1993"]
[Black "GMKrikor"]
[Result "1-0"]
[WhiteElo "2515"]
[BlackElo "2721"]
[TimeControl "180+1"]
[EndTime "10:29:58 PST"]
[Termination "erdni1993 won on time"]

1. e4 {[%clk 0:03:00.9]} 1... c5 {[%clk 0:02:59.4]} 2. Nf3 {[%clk 0:03:00]} 2...
d6 {[%clk 0:02:59.2]} 3. d4 {[%clk 0:03:00.5]} 3... cxd4 {[%clk 0:03:00.1]} 4.
Nxd4 {[%clk 0:03:01.1]} 4... Nf6 {[%clk 0:03:00.7]} 5. Nc3 {[%clk 0:03:01.7]}
5... a6 {[%clk 0:03:01.3]} 6. Bg5 {[%clk 0:03:02.2]} 6... Nbd7 {[%clk
0:03:01.3]} 7. Qd2 {[%clk 0:03:01.1]} 7... e6 {[%clk 0:02:57]} 8. a4 {[%clk
0:02:56.2]} 8... b6 {[%clk 0:02:50.7]} 9. Bc4 {[%clk 0:02:52.9]} 9... Bb7 {[%clk
0:02:45.2]} 10. f3 {[%clk 0:02:52.2]} 10... h6 {[%clk 0:02:31.3]} 11. Be3 {[%clk
0:02:50.3]} 11... Ne5 {[%clk 0:02:25.7]} 12. Ba2 {[%clk 0:02:48.6]} 12... Rc8
{[%clk 0:02:23.3]} 13. Rd1 {[%clk 0:02:42.2]} 13... Qc7 {[%clk 0:02:09.1]} 14.
O-O {[%clk 0:02:39.9]} 14... Nc4 {[%clk 0:02:05.7]} 15. Bxc4 {[%clk 0:02:39.3]}
15... Qxc4 {[%clk 0:02:06.6]} 16. Nb3 {[%clk 0:02:37.8]} 16... Qc7 {[%clk
0:01:54.3]} 17. Qf2 {[%clk 0:02:37.1]} 17... Nd7 {[%clk 0:01:54.2]} 18. Qg3
{[%clk 0:02:25.1]} 18... Ne5 {[%clk 0:01:49.8]} 19. Bd4 {[%clk 0:02:20.6]} 19...
h5 {[%clk 0:01:42.5]} 20. Qf2 {[%clk 0:02:09.5]} 20... Nc4 {[%clk 0:01:41.1]}
21. Ne2 {[%clk 0:01:56.1]} 21... e5 {[%clk 0:01:37.2]} 22. Bc3 {[%clk
0:01:55.6]} 22... Be7 {[%clk 0:01:32.7]} 23. Nd2 {[%clk 0:01:51.2]} 23... Nxd2
{[%clk 0:01:13.1]} 24. Rxd2 {[%clk 0:01:52.1]} 24... O-O {[%clk 0:01:12.4]} 25.
Kh1 {[%clk 0:01:45.7]} 25... Rfd8 {[%clk 0:01:01.8]} 26. Rfd1 {[%clk 0:01:45.3]}
26... g6 {[%clk 0:00:56.1]} 27. b3 {[%clk 0:01:33.7]} 27... Rd7 {[%clk
0:00:47.6]} 28. Bb2 {[%clk 0:01:32.2]} 28... Rcd8 {[%clk 0:00:46.9]} 29. c4
{[%clk 0:01:31.9]} 29... b5 {[%clk 0:00:47.5]} 30. axb5 {[%clk 0:01:29]} 30...
axb5 {[%clk 0:00:48.4]} 31. cxb5 {[%clk 0:01:26.3]} 31... d5 {[%clk 0:00:48.4]}
32. exd5 {[%clk 0:01:22.8]} 32... Rxd5 {[%clk 0:00:47.4]} 33. Rxd5 {[%clk
0:01:19.9]} 33... Rxd5 {[%clk 0:00:46.2]} 34. Rxd5 {[%clk 0:01:17.3]} 34... Bxd5
{[%clk 0:00:47.1]} 35. b6 {[%clk 0:01:16.5]} 35... Qc2 {[%clk 0:00:46.4]} 36.
Bxe5 {[%clk 0:01:10.7]} 36... Bc5 {[%clk 0:00:32.5]} 37. Qe1 {[%clk 0:00:51]}
37... Bxb6 {[%clk 0:00:31.2]} 38. Nf4 {[%clk 0:00:38.8]} 38... Bxb3 {[%clk
0:00:24]} 39. Bc3 {[%clk 0:00:38.5]} 39... Ba4 {[%clk 0:00:15.9]} 40. Nd5 {[%clk
0:00:33.5]} 40... Bd8 {[%clk 0:00:15.7]} 41. h3 {[%clk 0:00:27.9]} 41... Qd1
{[%clk 0:00:10.6]} 42. Qxd1 {[%clk 0:00:24.8]} 42... Bxd1 {[%clk 0:00:11.5]} 43.
Nf6+ {[%clk 0:00:23.1]} 43... Kf8 {[%clk 0:00:10.5]} 44. Ne4 {[%clk 0:00:21.8]}
44... Bc2 {[%clk 0:00:08.6]} 45. Bb4+ {[%clk 0:00:21.5]} 45... Kg7 {[%clk
0:00:08.1]} 46. Kg1 {[%clk 0:00:19.8]} 46... Bc7 {[%clk 0:00:06.8]} 47. Kf2
{[%clk 0:00:19.3]} 47... f6 {[%clk 0:00:07]} 48. Bc5 {[%clk 0:00:18.7]} 48...
Kf7 {[%clk 0:00:06.3]} 49. Nd2 {[%clk 0:00:17.9]} 49... Bd3 {[%clk 0:00:05.8]}
50. g4 {[%clk 0:00:17.4]} 50... h4 {[%clk 0:00:03.7]} 51. Kg2 {[%clk 0:00:16.4]}
51... Ba6 {[%clk 0:00:03.8]} 52. Bf2 {[%clk 0:00:15.3]} 52... g5 {[%clk
0:00:03.2]} 53. Ne4 {[%clk 0:00:15.4]} 53... Bc4 {[%clk 0:00:02.9]} 54. Bd4
{[%clk 0:00:15.7]} 1-0

[Event "*** Titled Tuesday Blitz"]
[Site "Chess.com"]
[Date "2021.03.09"]
[Round "3"]
[White "Sadykov_Ramil"]
[Black "AsaHoffmann"]
[Result "0-1"]
[WhiteElo "2575"]
[BlackElo "2413"]
[TimeControl "180+1"]
[EndTime "10:29:58 PST"]
[Termination "AsaHoffmann won by checkmate"]

1. d4 {[%clk 0:03:00.9]} 1... Nf6 {[%clk 0:02:52.8]} 2. Nc3 {[%clk 0:02:59.9]}
2... d6 {[%clk 0:02:51.9]} 3. e4 {[%clk 0:02:58.7]} 3... c6 {[%clk 0:02:50.9]}
4. f4 {[%clk 0:02:41.8]} 4... Qa5 {[%clk 0:02:49.8]} 5. Bd3 {[%clk 0:02:38.4]}
5... e5 {[%clk 0:02:49]} 6. Nf3 {[%clk 0:02:37.7]} 6... exd4 {[%clk 0:02:48.1]}
7. Nxd4 {[%clk 0:02:37.5]} 7... Qb6 {[%clk 0:02:48]} 8. Be2 {[%clk 0:02:31.5]}
8... Be7 {[%clk 0:02:46.6]} 9. O-O {[%clk 0:02:29.4]} 9... O-O {[%clk
0:02:45.8]} 10. Kh1 {[%clk 0:02:29.1]} 10... Re8 {[%clk 0:02:39.1]} 11. a4
{[%clk 0:02:09.3]} 11... a5 {[%clk 0:02:35.3]} 12. Bf3 {[%clk 0:02:03.3]} 12...
Na6 {[%clk 0:02:28.4]} 13. g4 {[%clk 0:01:55.7]} 13... Bf8 {[%clk 0:02:27.9]}
14. g5 {[%clk 0:01:51.5]} 14... Nd7 {[%clk 0:02:23.6]} 15. b3 {[%clk 0:01:49.1]}
15... Ndc5 {[%clk 0:02:21.2]} 16. Be3 {[%clk 0:01:43.6]} 16... Nb4 {[%clk
0:02:18.2]} 17. Qd2 {[%clk 0:01:41.4]} 17... g6 {[%clk 0:02:14.8]} 18. Bg2
{[%clk 0:01:38.6]} 18... Bg7 {[%clk 0:02:13.9]} 19. f5 {[%clk 0:01:36.9]} 19...
Be5 {[%clk 0:02:12.4]} 20. Qf2 {[%clk 0:01:32]} 20... Rf8 {[%clk 0:02:09.7]} 21.
Qh4 {[%clk 0:01:17.4]} 21... d5 {[%clk 0:01:55]} 22. f6 {[%clk 0:01:10.3]} 22...
h5 {[%clk 0:01:51]} 23. exd5 {[%clk 0:00:54.7]} 23... cxd5 {[%clk 0:01:50.2]}
24. Bf3 {[%clk 0:00:48.3]} 24... Ne4 {[%clk 0:00:57.1]} 25. Nxe4 {[%clk
0:00:31.2]} 25... dxe4 {[%clk 0:00:56.2]} 26. Qxe4 {[%clk 0:00:32]} 26... Re8
{[%clk 0:00:50.6]} 27. Rad1 {[%clk 0:00:24.6]} 27... Bh3 {[%clk 0:00:48.8]} 28.
Qxb7 {[%clk 0:00:20]} 28... Qxb7 {[%clk 0:00:42.9]} 29. Bxb7 {[%clk 0:00:20.9]}
29... Bxf1 {[%clk 0:00:40.9]} 30. Bxa8 {[%clk 0:00:16.5]} 30... Rxa8 {[%clk
0:00:39.4]} 31. Rxf1 {[%clk 0:00:16.1]} 31... Bxd4 {[%clk 0:00:39.2]} 32. Bxd4
{[%clk 0:00:17]} 32... Nxc2 {[%clk 0:00:39.2]} 33. Bc3 {[%clk 0:00:10.6]} 33...
Ne3 {[%clk 0:00:34.6]} 34. Re1 {[%clk 0:00:08.7]} 34... Nd5 {[%clk 0:00:33.1]}
35. Bd2 {[%clk 0:00:08.5]} 35... Rb8 {[%clk 0:00:32.6]} 36. Bxa5 {[%clk
0:00:07]} 36... Rxb3 {[%clk 0:00:31.2]} 37. Re8+ {[%clk 0:00:07.2]} 37... Kh7
{[%clk 0:00:30.8]} 38. Rf8 {[%clk 0:00:06.5]} 38... Rb7 {[%clk 0:00:28.3]} 39.
Kg2 {[%clk 0:00:01.7]} 39... Nf4+ {[%clk 0:00:28.2]} 40. Kf3 {[%clk 0:00:01.8]}
40... Ne6 {[%clk 0:00:28.1]} 41. Re8 {[%clk 0:00:01.6]} 41... Nxg5+ {[%clk
0:00:27.7]} 42. Kf4 {[%clk 0:00:01.3]} 42... Ne6+ {[%clk 0:00:26]} 43. Ke5
{[%clk 0:00:01.7]} 43... g5 {[%clk 0:00:25.4]} 44. Rxe6 {[%clk 0:00:01.5]} 44...
fxe6 {[%clk 0:00:25]} 45. Kxe6 {[%clk 0:00:02.4]} 45... Kg6 {[%clk 0:00:25.1]}
46. Bd8 {[%clk 0:00:02.5]} 46... g4 {[%clk 0:00:23.2]} 47. a5 {[%clk 0:00:02.9]}
47... h4 {[%clk 0:00:22.8]} 48. a6 {[%clk 0:00:03.3]} 48... Ra7 {[%clk
0:00:22.7]} 49. Be7 {[%clk 0:00:02.8]} 49... Rxa6+ {[%clk 0:00:22]} 50. Ke5
{[%clk 0:00:03]} 50... Kf7 {[%clk 0:00:21]} 51. Kf4 {[%clk 0:00:02.8]} 51...
Ra4+ {[%clk 0:00:20.9]} 52. Ke3 {[%clk 0:00:02.2]} 52... g3 {[%clk 0:00:20.9]}
53. hxg3 {[%clk 0:00:02.2]} 53... h3 {[%clk 0:00:21.1]} 54. Kf3 {[%clk
0:00:02.3]} 54... Ra2 {[%clk 0:00:20.5]} 55. g4 {[%clk 0:00:01.7]} 55... h2
{[%clk 0:00:20.3]} 56. g5 {[%clk 0:00:02.6]} 56... h1=Q+ {[%clk 0:00:19.5]} 57.
Kg4 {[%clk 0:00:03.5]} 57... Ra4+ {[%clk 0:00:18.9]} 58. Kf5 {[%clk 0:00:03.6]}
58... Qe4# {[%clk 0:00:18.1]} 0-1

[Event "*** Titled Tuesday Blitz"]
[Site "Chess.com"]
[Date "2021.03.09"]
[Round "3"]
[White "NoGalloNoParty"]
[Black "Klavdia_Nik"]
[Result "1-0"]
[WhiteElo "2303"]
[BlackElo "2056"]
[TimeControl "180+1"]
[EndTime "10:29:59 PST"]
[Termination "NoGalloNoParty won on time"]

1. d4 {[%clk 0:01:48.2]} 1... Nf6 {[%clk 0:02:54.6]} 2. Nf3 {[%clk 0:01:47.2]}
2... c5 {[%clk 0:02:54.2]} 3. d5 {[%clk 0:01:46.9]} 3... d6 {[%clk 0:02:53.8]}
4. Nc3 {[%clk 0:01:46.7]} 4... g6 {[%clk 0:02:52]} 5. e4 {[%clk 0:01:46.7]} 5...
Bg7 {[%clk 0:02:52.6]} 6. Bb5+ {[%clk 0:01:46.4]} 6... Nfd7 {[%clk 0:02:51]} 7.
a4 {[%clk 0:01:45.1]} 7... b6 {[%clk 0:02:45.3]} 8. O-O {[%clk 0:01:43.3]} 8...
O-O {[%clk 0:02:45.1]} 9. Re1 {[%clk 0:01:42.7]} 9... Na6 {[%clk 0:02:41.9]} 10.
h3 {[%clk 0:01:39.1]} 10... Nc7 {[%clk 0:02:38.6]} 11. Bf1 {[%clk 0:01:28.7]}
11... a6 {[%clk 0:02:30]} 12. Bf4 {[%clk 0:01:27.2]} 12... Bb7 {[%clk
0:02:16.8]} 13. Qd2 {[%clk 0:01:25]} 13... b5 {[%clk 0:02:11.1]} 14. axb5 {[%clk
0:01:24]} 14... axb5 {[%clk 0:02:09.6]} 15. Rxa8 {[%clk 0:01:22.4]} 15... Qxa8
{[%clk 0:02:09.4]} 16. Nxb5 {[%clk 0:01:18.5]} 16... Nxb5 {[%clk 0:01:52.4]} 17.
Bxb5 {[%clk 0:01:19.4]} 17... Nb6 {[%clk 0:01:52.3]} 18. c3 {[%clk 0:01:17.6]}
18... Qa5 {[%clk 0:01:45.7]} 19. Bf1 {[%clk 0:01:16.2]} 19... Ba6 {[%clk
0:01:44.9]} 20. Bxa6 {[%clk 0:01:13.6]} 20... Qxa6 {[%clk 0:01:44.7]} 21. e5
{[%clk 0:01:12.4]} 21... Nc8 {[%clk 0:01:21.2]} 22. exd6 {[%clk 0:00:49]} 22...
exd6 {[%clk 0:01:19.2]} 23. Qe2 {[%clk 0:00:47.8]} 23... Qb7 {[%clk 0:01:16.3]}
24. c4 {[%clk 0:00:33.8]} 24... Qxb2 {[%clk 0:01:06.3]} 25. Qxb2 {[%clk
0:00:33]} 25... Bxb2 {[%clk 0:01:07]} 26. Rb1 {[%clk 0:00:30.6]} 26... Bg7
{[%clk 0:01:03.8]} 27. Ng5 {[%clk 0:00:26.3]} 27... h6 {[%clk 0:00:59.3]} 28.
Ne4 {[%clk 0:00:25.7]} 28... Rd8 {[%clk 0:00:59.9]} 29. Rb8 {[%clk 0:00:24.3]}
29... Re8 {[%clk 0:00:46.4]} 30. Nxd6 {[%clk 0:00:23.3]} 30... Nxd6 {[%clk
0:00:45.4]} 31. Bxd6 {[%clk 0:00:23.1]} 31... Rxb8 {[%clk 0:00:40.5]} 32. Bxb8
{[%clk 0:00:22.4]} 32... f5 {[%clk 0:00:36.5]} 33. Bd6 {[%clk 0:00:20.1]} 33...
Bd4 {[%clk 0:00:35.6]} 34. Kf1 {[%clk 0:00:20.5]} 34... Kf7 {[%clk 0:00:35.8]}
35. Ke2 {[%clk 0:00:20.5]} 35... g5 {[%clk 0:00:33.3]} 36. f3 {[%clk 0:00:20.5]}
36... h5 {[%clk 0:00:29.5]} 37. g4 {[%clk 0:00:20.4]} 37... hxg4 {[%clk
0:00:28.1]} 38. hxg4 {[%clk 0:00:20.4]} 38... fxg4 {[%clk 0:00:17.1]} 39. fxg4
{[%clk 0:00:20.1]} 39... Ke8 {[%clk 0:00:16.2]} 40. Kd3 {[%clk 0:00:19.9]} 40...
Kd7 {[%clk 0:00:15.5]} 41. Bf8 {[%clk 0:00:18.4]} 41... Ke8 {[%clk 0:00:13.6]}
42. Bd6 {[%clk 0:00:18.2]} 42... Kd7 {[%clk 0:00:11]} 43. Bb8 {[%clk 0:00:18.5]}
43... Kc8 {[%clk 0:00:10.4]} 44. Bg3 {[%clk 0:00:17.1]} 44... Kd7 {[%clk
0:00:10.7]} 45. Ke4 {[%clk 0:00:16.9]} 45... Ke7 {[%clk 0:00:10.6]} 46. Kf5
{[%clk 0:00:14.9]} 46... Be3 {[%clk 0:00:10.3]} 47. Be5 {[%clk 0:00:14.4]} 47...
Kf7 {[%clk 0:00:09.4]} 48. Bf6 {[%clk 0:00:13.3]} 48... Bd2 {[%clk 0:00:08.6]}
49. Bxg5 {[%clk 0:00:13.5]} 49... Bc3 {[%clk 0:00:07.3]} 50. Bf4 {[%clk
0:00:13.3]} 50... Bd4 {[%clk 0:00:07.3]} 51. Be5 {[%clk 0:00:13.4]} 51... Be3
{[%clk 0:00:05.7]} 52. g5 {[%clk 0:00:12.6]} 1-0

[Event "*** Titled Tuesday Blitz"]
[Site "Chess.com"]
[Date "2021.03.09"]
[Round "3"]
[White "Lupul_Cenusiu"]
[Black "ulkaf961"]
[Result "0-1"]
[WhiteElo "2569"]
[BlackElo "2417"]
[TimeControl "180+1"]
[EndTime "10:30:00 PST"]
[Termination "ulkaf961 won on time"]

1. d4 {[%clk 0:03:00.9]} 1... d5 {[%clk 0:02:59]} 2. c4 {[%clk 0:03:00.2]} 2...
e6 {[%clk 0:02:58.3]} 3. Nc3 {[%clk 0:03:00.1]} 3... a6 {[%clk 0:02:57.9]} 4. e3
{[%clk 0:02:58.2]} 4... Nf6 {[%clk 0:02:56.6]} 5. Nf3 {[%clk 0:02:56.9]} 5... b6
{[%clk 0:02:52.3]} 6. cxd5 {[%clk 0:02:47.7]} 6... exd5 {[%clk 0:02:51.5]} 7.
Be2 {[%clk 0:02:39.1]} 7... Bd6 {[%clk 0:02:43.4]} 8. Ne5 {[%clk 0:02:38.9]}
8... O-O {[%clk 0:02:42.1]} 9. O-O {[%clk 0:02:38.3]} 9... c5 {[%clk 0:02:28.4]}
10. f4 {[%clk 0:02:33.1]} 10... Bb7 {[%clk 0:02:02]} 11. Bf3 {[%clk 0:02:28.9]}
11... Ne4 {[%clk 0:01:54.4]} 12. Bd2 {[%clk 0:02:15.1]} 12... Nd7 {[%clk
0:01:19.2]} 13. Be1 {[%clk 0:02:08.7]} 13... Nxc3 {[%clk 0:00:42.4]} 14. bxc3
{[%clk 0:02:07.6]} 14... Nf6 {[%clk 0:00:42.4]} 15. Rb1 {[%clk 0:02:00.5]} 15...
Ne4 {[%clk 0:00:36.7]} 16. a4 {[%clk 0:01:48.3]} 16... Rb8 {[%clk 0:00:35.5]}
17. Qb3 {[%clk 0:01:42.1]} 17... Ba8 {[%clk 0:00:34]} 18. Qa2 {[%clk 0:01:32.4]}
18... Qe7 {[%clk 0:00:23.7]} 19. Kh1 {[%clk 0:01:15.7]} 19... Rfc8 {[%clk
0:00:22.5]} 20. Rb2 {[%clk 0:00:59.9]} 20... b5 {[%clk 0:00:22.3]} 21. axb5
{[%clk 0:00:58.6]} 21... axb5 {[%clk 0:00:22.6]} 22. Qb1 {[%clk 0:00:57.8]}
22... b4 {[%clk 0:00:20]} 23. c4 {[%clk 0:00:52]} 23... cxd4 {[%clk 0:00:17.5]}
24. exd4 {[%clk 0:00:50.5]} 24... Nc3 {[%clk 0:00:17.3]} 25. Qf5 {[%clk
0:00:40.4]} 25... f6 {[%clk 0:00:14.2]} 26. Ng4 {[%clk 0:00:31.1]} 26... dxc4
{[%clk 0:00:08.1]} 27. Bxa8 {[%clk 0:00:24.4]} 27... Rxa8 {[%clk 0:00:08.3]} 28.
Bh4 {[%clk 0:00:24.5]} 28... Rf8 {[%clk 0:00:07.1]} 29. Re1 {[%clk 0:00:20]}
29... Qf7 {[%clk 0:00:06.8]} 30. Bxf6 {[%clk 0:00:14.4]} 30... Rae8 {[%clk
0:00:03.6]} 31. Rf1 {[%clk 0:00:12.6]} 31... Re6 {[%clk 0:00:02.1]} 32. Nh6+
{[%clk 0:00:10.5]} 32... gxh6 {[%clk 0:00:01.7]} 33. Qg4+ {[%clk 0:00:10.3]}
33... Qg6 {[%clk 0:00:02.6]} 34. Qxe6+ {[%clk 0:00:10.3]} 34... Qf7 {[%clk
0:00:02.9]} 35. Qxd6 {[%clk 0:00:10.3]} 35... Qxf6 {[%clk 0:00:03.4]} 36. Qxf6
{[%clk 0:00:09.8]} 36... Rxf6 {[%clk 0:00:03.6]} 37. Rxb4 {[%clk 0:00:10.3]}
37... Rc6 {[%clk 0:00:03.6]} 38. Re1 {[%clk 0:00:10.1]} 38... Nd5 {[%clk
0:00:03.6]} 39. Rb7 {[%clk 0:00:10.2]} 39... Kf8 {[%clk 0:00:03.4]} 40. Rd7
{[%clk 0:00:08.3]} 40... Nf6 {[%clk 0:00:02.2]} 41. Rb7 {[%clk 0:00:06.2]} 41...
c3 {[%clk 0:00:02.4]} 42. g3 {[%clk 0:00:05]} 42... c2 {[%clk 0:00:02.6]} 43.
Rc1 {[%clk 0:00:04.8]} 43... Nd5 {[%clk 0:00:01.6]} 44. Rb2 {[%clk 0:00:04.5]}
44... Ne3 {[%clk 0:00:01.5]} 45. h3 {[%clk 0:00:03.3]} 45... Rd6 {[%clk
0:00:01.7]} 46. Rb4 {[%clk 0:00:01.3]} 46... Re6 {[%clk 0:00:01.5]} 0-1

[Event "*** Titled Tuesday Blitz"]
[Site "Chess.com"]
[Date "2021.03.09"]
[Round "3"]
[White "Treacherous_horse64"]
[Black "buhomurciano"]
[Result "1-0"]
[WhiteElo "2537"]
[BlackElo "2250"]
[TimeControl "180+1"]
[EndTime "10:30:00 PST"]
[Termination "Treacherous_horse64 won on time"]

1. d4 {[%clk 0:02:27.5]} 1... d5 {[%clk 0:02:57.9]} 2. c4 {[%clk 0:02:27.8]}
2... e6 {[%clk 0:02:57.7]} 3. Nc3 {[%clk 0:02:27.8]} 3... c6 {[%clk 0:02:57.1]}
4. e4 {[%clk 0:02:27]} 4... dxe4 {[%clk 0:02:50.6]} 5. Nxe4 {[%clk 0:02:27.9]}
5... Nf6 {[%clk 0:02:49.9]} 6. Nxf6+ {[%clk 0:02:20.8]} 6... Qxf6 {[%clk
0:02:48.8]} 7. Nf3 {[%clk 0:02:21]} 7... h6 {[%clk 0:02:39.1]} 8. Bd2 {[%clk
0:02:17.3]} 8... Bd6 {[%clk 0:02:31.2]} 9. Bd3 {[%clk 0:02:16.1]} 9... Nd7
{[%clk 0:02:27.1]} 10. Bc3 {[%clk 0:02:14.5]} 10... Qe7 {[%clk 0:01:52.7]} 11.
O-O {[%clk 0:02:13.5]} 11... O-O {[%clk 0:01:47.2]} 12. Qe2 {[%clk 0:02:11.4]}
12... Re8 {[%clk 0:01:31.1]} 13. Rfe1 {[%clk 0:02:07.1]} 13... Nf6 {[%clk
0:01:09.6]} 14. Rad1 {[%clk 0:01:43.9]} 14... b6 {[%clk 0:01:07.6]} 15. Ne5
{[%clk 0:01:42.9]} 15... Bb7 {[%clk 0:01:06.1]} 16. Ng4 {[%clk 0:01:09.9]} 16...
Nxg4 {[%clk 0:01:00]} 17. Qxg4 {[%clk 0:01:10.8]} 17... Qg5 {[%clk 0:00:53.6]}
18. Qe4 {[%clk 0:01:01.5]} 18... f5 {[%clk 0:00:42.5]} 19. Qf3 {[%clk
0:01:00.3]} 19... Rab8 {[%clk 0:00:38.7]} 20. c5 {[%clk 0:00:37.5]} 20... bxc5
{[%clk 0:00:25.6]} 21. dxc5 {[%clk 0:00:38.4]} 21... Bxc5 {[%clk 0:00:20.6]} 22.
Bc4 {[%clk 0:00:38.8]} 22... Qg6 {[%clk 0:00:16.1]} 23. Be5 {[%clk 0:00:33.5]}
23... Rbd8 {[%clk 0:00:15.4]} 24. Qb3 {[%clk 0:00:30.5]} 24... Bc8 {[%clk
0:00:12.5]} 25. Bc7 {[%clk 0:00:22.2]} 25... Rxd1 {[%clk 0:00:11.9]} 26. Rxd1
{[%clk 0:00:23.1]} 26... Kh8 {[%clk 0:00:10.4]} 27. Qc3 {[%clk 0:00:20]} 27...
Be7 {[%clk 0:00:09.3]} 28. Be5 {[%clk 0:00:19.6]} 28... Bf6 {[%clk 0:00:09.5]}
29. Re1 {[%clk 0:00:16.5]} 29... Bxe5 {[%clk 0:00:08.1]} 30. Qxe5 {[%clk
0:00:17.4]} 30... Qf6 {[%clk 0:00:07.3]} 31. f4 {[%clk 0:00:17.7]} 31... Qxe5
{[%clk 0:00:07.2]} 32. Rxe5 {[%clk 0:00:18.6]} 32... g5 {[%clk 0:00:06.4]} 33.
g3 {[%clk 0:00:18.4]} 33... Kg7 {[%clk 0:00:06.4]} 34. Kf2 {[%clk 0:00:18.3]}
34... Kf6 {[%clk 0:00:06.7]} 35. Bb3 {[%clk 0:00:17.1]} 35... Re7 {[%clk
0:00:06.3]} 36. Ra5 {[%clk 0:00:16.7]} 36... Rc7 {[%clk 0:00:06.3]} 37. Ke3
{[%clk 0:00:15.5]} 37... Bd7 {[%clk 0:00:06.9]} 38. Bc4 {[%clk 0:00:13.8]} 38...
e5 {[%clk 0:00:06.9]} 39. Rxe5 {[%clk 0:00:12]} 39... c5 {[%clk 0:00:05.4]} 40.
b3 {[%clk 0:00:10.6]} 40... Bc8 {[%clk 0:00:04.1]} 41. Re8 {[%clk 0:00:10.2]}
41... Re7+ {[%clk 0:00:04]} 42. Rxe7 {[%clk 0:00:10.1]} 42... Kxe7 {[%clk
0:00:04.9]} 43. fxg5 {[%clk 0:00:09.7]} 43... hxg5 {[%clk 0:00:04.4]} 44. h4
{[%clk 0:00:10]} 44... gxh4 {[%clk 0:00:04.8]} 45. gxh4 {[%clk 0:00:10.2]} 45...
Kf6 {[%clk 0:00:05.2]} 46. Kf4 {[%clk 0:00:10.7]} 46... Bb7 {[%clk 0:00:05.5]}
47. h5 {[%clk 0:00:10.6]} 47... Bc8 {[%clk 0:00:05.5]} 48. Bd3 {[%clk
0:00:09.3]} 48... Be6 {[%clk 0:00:05.5]} 49. h6 {[%clk 0:00:08.8]} 49... Kg6
{[%clk 0:00:05.2]} 50. Bxf5+ {[%clk 0:00:04.5]} 50... Bxf5 {[%clk 0:00:03.4]}
51. h7 {[%clk 0:00:05.4]} 51... Kg7 {[%clk 0:00:03.3]} 52. Kxf5 {[%clk
0:00:06.3]} 1-0

[Event "*** Titled Tuesday Blitz"]
[Site "Chess.com"]
[Date "2021.03.09"]
[Round "3"]
[White "Thjop"]
[Black "lagedema"]
[Result "1-0"]
[WhiteElo "2658"]
[BlackElo "2488"]
[TimeControl "180+1"]
[EndTime "10:30:01 PST"]
[Termination "Thjop won by resignation"]

1. e4 {[%clk 0:03:00.9]} 1... c6 {[%clk 0:02:59.9]} 2. d4 {[%clk 0:03:00.3]}
2... d5 {[%clk 0:03:00.8]} 3. e5 {[%clk 0:03:00.4]} 3... Bf5 {[%clk 0:03:00.2]}
4. Nf3 {[%clk 0:03:00.4]} 4... e6 {[%clk 0:03:00.5]} 5. Be2 {[%clk 0:03:00.8]}
5... c5 {[%clk 0:03:01]} 6. O-O {[%clk 0:03:00.7]} 6... Qb6 {[%clk 0:03:01.1]}
7. c4 {[%clk 0:03:00.4]} 7... dxc4 {[%clk 0:02:56.1]} 8. Na3 {[%clk 0:02:58.1]}
8... Nc6 {[%clk 0:02:49.9]} 9. Nxc4 {[%clk 0:02:56.9]} 9... Qc7 {[%clk
0:02:50.2]} 10. Bf4 {[%clk 0:02:40.2]} 10... Rd8 {[%clk 0:02:27.5]} 11. Nd6+
{[%clk 0:02:37.7]} 11... Bxd6 {[%clk 0:02:27.8]} 12. exd6 {[%clk 0:02:38.6]}
12... Qb6 {[%clk 0:02:28.4]} 13. dxc5 {[%clk 0:02:37.3]} 13... Qxc5 {[%clk
0:02:28.1]} 14. Qb3 {[%clk 0:02:27.5]} 14... Qb4 {[%clk 0:02:07.9]} 15. Qxb4
{[%clk 0:02:18.7]} 15... Nxb4 {[%clk 0:02:08.8]} 16. Bb5+ {[%clk 0:02:15.4]}
16... Kf8 {[%clk 0:02:08]} 17. d7 {[%clk 0:02:09.5]} 17... Ke7 {[%clk 0:02:07]}
18. Bc7 {[%clk 0:01:35.5]} 18... Rxd7 {[%clk 0:01:51.5]} 19. Bxd7 {[%clk
0:01:36.4]} 19... Kxd7 {[%clk 0:01:50.6]} 20. Be5 {[%clk 0:01:35.4]} 20... Nf6
{[%clk 0:01:47.9]} 21. Bxf6 {[%clk 0:01:32.5]} 21... gxf6 {[%clk 0:01:46.5]} 22.
a3 {[%clk 0:01:32.3]} 22... Nc6 {[%clk 0:01:42.6]} 23. Rad1+ {[%clk 0:01:30.8]}
23... Kc7 {[%clk 0:01:39.4]} 24. Nd4 {[%clk 0:01:31]} 24... Be4 {[%clk
0:01:30.2]} 25. Nxc6 {[%clk 0:01:25.7]} 25... Bxc6 {[%clk 0:01:29]} 26. f3
{[%clk 0:01:20.9]} 26... h5 {[%clk 0:01:29]} 27. h4 {[%clk 0:01:19.9]} 27... f5
{[%clk 0:01:26.2]} 28. Kf2 {[%clk 0:01:19.6]} 28... a5 {[%clk 0:01:25.7]} 29.
Rd2 {[%clk 0:01:18.4]} 29... f4 {[%clk 0:01:19.1]} 30. Rc1 {[%clk 0:01:15.2]}
30... a4 {[%clk 0:01:08.1]} 31. Rd4 {[%clk 0:01:12.1]} 31... e5 {[%clk
0:01:08.3]} 32. Rxa4 {[%clk 0:01:11.7]} 32... Rd8 {[%clk 0:01:08.7]} 33. Rc2
{[%clk 0:01:08.5]} 33... f6 {[%clk 0:00:57.2]} 34. Rac4 {[%clk 0:01:04.3]} 34...
Kb6 {[%clk 0:00:56.7]} 35. a4 {[%clk 0:01:00]} 35... Rd1 {[%clk 0:00:52.9]} 36.
b3 {[%clk 0:00:50.6]} 36... Rb1 {[%clk 0:00:44.4]} 37. R4c3 {[%clk 0:00:38.7]}
37... Ka5 {[%clk 0:00:40.4]} 38. Rxc6 {[%clk 0:00:35.2]} 38... bxc6 {[%clk
0:00:39.4]} 39. Rxc6 {[%clk 0:00:36.1]} 39... Rb2+ {[%clk 0:00:39.5]} 40. Kg1
{[%clk 0:00:35.5]} 40... Rxb3 {[%clk 0:00:40.4]} 41. Rxf6 {[%clk 0:00:35.2]}
41... Kxa4 {[%clk 0:00:39.3]} 42. Rf5 {[%clk 0:00:35]} 42... Re3 {[%clk
0:00:39.3]} 43. Rxh5 {[%clk 0:00:34.7]} 43... Kb3 {[%clk 0:00:40.2]} 44. Rf5
{[%clk 0:00:20.9]} 44... Kc4 {[%clk 0:00:38.1]} 45. h5 {[%clk 0:00:19.8]} 45...
Kd5 {[%clk 0:00:39]} 46. h6 {[%clk 0:00:20.2]} 46... Ra3 {[%clk 0:00:39.9]} 47.
h7 {[%clk 0:00:18.7]} 47... Ra8 {[%clk 0:00:40.1]} 48. Rh5 {[%clk 0:00:17.7]}
48... Rh8 {[%clk 0:00:39.6]} 49. Kh2 {[%clk 0:00:17.3]} 49... Ke6 {[%clk
0:00:40.2]} 50. Kh3 {[%clk 0:00:17.8]} 50... Kf6 {[%clk 0:00:40.7]} 51. Kg4
{[%clk 0:00:18.3]} 51... Kg6 {[%clk 0:00:33.8]} 52. Rh1 {[%clk 0:00:17.2]} 52...
Kf6 {[%clk 0:00:30.3]} 53. Ra1 {[%clk 0:00:17.1]} 53... Ke6 {[%clk 0:00:18.8]}
54. Ra6+ {[%clk 0:00:14.9]} 54... Kd5 {[%clk 0:00:19.7]} 55. Ra7 {[%clk
0:00:15.1]} 55... Kd4 {[%clk 0:00:19.3]} 56. Re7 {[%clk 0:00:14.4]} 56... Ke3
{[%clk 0:00:20.2]} 57. Rxe5+ {[%clk 0:00:14.3]} 57... Kf2 {[%clk 0:00:21.1]} 58.
Re7 {[%clk 0:00:14.4]} 58... Kxg2 {[%clk 0:00:20.5]} 59. Kxf4 {[%clk 0:00:14.9]}
59... Rf8+ {[%clk 0:00:18.6]} 60. Kg5 {[%clk 0:00:13.7]} 60... Kxf3 {[%clk
0:00:17.4]} 61. Kg6 {[%clk 0:00:13.6]} 1-0